{"text_format":"3","workbook":"xlsx","n_sheets":7,"sheets":["Segunda-feira","Terça-feira","Quarta-feira","Quinta-feira","Sexta-feira","Sábado","Domingo"],"not_rendered":{"defined_names":24},"read":"whole","date_system":"1900"}

{"sheet":"Segunda-feira","index":0,"n_rows":10,"n_cols":13,"rows_kept":10,"merged":[[1,1,2,1],[1,2,1,10],[1,11,1,12],[2,2,2,10],[2,11,2,12]]}
[null,"CALENDÁRIO DE TURNOS"]
[null,"SEGUNDA-FEIRA","Para a Semana de: ",{"$nulls":8},"DATA"]
[null,null,"Nome do Departamento: ",{"$nulls":8},"DEPARTAMENTO"]
[null,"Nome do Funcionário","07:00","08:00","09:00","10:00","11:00","12:00","13:00","14:00","15:00","Doente?","TOTAL"]
[null,"Margarida G.","gestora","gestora","gestora","gestora","gestora","gestora","gestora","gestora","gestora",null,{"$f":"IFERROR(COUNTIF(Segunda_feira[[#This Row],[07:00]:[15:00]],\"*\"),\"\")","v":9}]
[null,"Tomás M",null,"caixa","caixa","caixa","caixa",{"$nulls":5},{"$f":"IFERROR(COUNTIF(Segunda_feira[[#This Row],[07:00]:[15:00]],\"*\"),\"\")","v":4}]
[null,"Jorge A",null,"receção","receção","receção","receção ","receção","receção","receção",null,null,{"$f":"IFERROR(COUNTIF(Segunda_feira[[#This Row],[07:00]:[15:00]],\"*\"),\"\")","v":7}]
[null,"João T",null,"receção","receção","receção","receção ","receção","receção","receção",null,null,{"$f":"IFERROR(COUNTIF(Segunda_feira[[#This Row],[07:00]:[15:00]],\"*\"),\"\")","v":7}]
[null,"Samuel C",{"$nulls":10},{"$f":"IFERROR(COUNTIF(Segunda_feira[[#This Row],[07:00]:[15:00]],\"*\"),\"\")","v":0}]
[null,"Teresa A",{"$nulls":5},"caixa","caixa","caixa","caixa",null,{"$f":"IFERROR(COUNTIF(Segunda_feira[[#This Row],[07:00]:[15:00]],\"*\"),\"\")","v":4}]

{"sheet":"Terça-feira","index":1,"n_rows":10,"n_cols":13,"rows_kept":10,"merged":[[1,1,2,1],[1,2,1,10],[1,11,1,12],[2,2,2,10],[2,11,2,12]]}
[null,{"$f":"CALENDÁRIO_DE_TURNOS_Título","v":"CALENDÁRIO DE TURNOS"}]
[null,"TERÇA-FEIRA","Para a Semana de: ",{"$nulls":8},{"$f":"DATA","v":"DATA"}]
[null,null,"Nome do Departamento: ",{"$nulls":8},{"$f":"DEPARTAMENTO","v":"DEPARTAMENTO"}]
[null,"Nome do Funcionário","07:00","08:00","09:00","10:00","11:00","12:00","13:00","14:00","15:00","Doente?","TOTAL"]
[null,"Margarida G.","gestora","gestora","gestora","gestora","gestora","gestora","gestora","gestora","gestora",null,{"$f":"IFERROR(COUNTIF(Terça_feira[[#This Row],[07:00]:[15:00]],\"*\"),\"\")","v":9}]
[null,"Tomás M",null,"caixa","caixa","caixa","caixa",{"$nulls":5},{"$f":"IFERROR(COUNTIF(Terça_feira[[#This Row],[07:00]:[15:00]],\"*\"),\"\")","v":4}]
[null,"Jorge A",null,"receção","receção","receção","receção ","receção","receção","receção",null,null,{"$f":"IFERROR(COUNTIF(Terça_feira[[#This Row],[07:00]:[15:00]],\"*\"),\"\")","v":7}]
[null,"João T",null,"receção","receção","receção","receção ","receção","receção","receção",null,null,{"$f":"IFERROR(COUNTIF(Terça_feira[[#This Row],[07:00]:[15:00]],\"*\"),\"\")","v":7}]
[null,"Samuel C",{"$nulls":9},"Doente",{"$f":"IFERROR(COUNTIF(Terça_feira[[#This Row],[07:00]:[15:00]],\"*\"),\"\")","v":0}]
[null,"Teresa A",{"$nulls":5},"caixa","caixa","caixa","caixa",null,{"$f":"IFERROR(COUNTIF(Terça_feira[[#This Row],[07:00]:[15:00]],\"*\"),\"\")","v":4}]

{"sheet":"Quarta-feira","index":2,"n_rows":10,"n_cols":13,"rows_kept":10,"merged":[[1,1,2,1],[1,2,1,10],[1,11,1,12],[2,2,2,10],[2,11,2,12]]}
[null,{"$f":"CALENDÁRIO_DE_TURNOS_Título","v":"CALENDÁRIO DE TURNOS"}]
[null,"QUARTA-FEIRA","Para a Semana de: ",{"$nulls":8},{"$f":"DATA","v":"DATA"}]
[null,null,"Nome do Departamento: ",{"$nulls":8},{"$f":"DEPARTAMENTO","v":"DEPARTAMENTO"}]
[null,"Nome do Funcionário","07:00","08:00","09:00","10:00","11:00","12:00","13:00","14:00","15:00","Doente?","TOTAL"]
[null,"Margarida G.","gestora","gestora","gestora","gestora","gestora","gestora","gestora","gestora","gestora",null,{"$f":"IFERROR(COUNTIF(Quarta_feira[[#This Row],[07:00]:[15:00]],\"*\"),\"\")","v":9}]
[null,"Tomás M",null,"caixa","caixa","caixa","caixa",{"$nulls":5},{"$f":"IFERROR(COUNTIF(Quarta_feira[[#This Row],[07:00]:[15:00]],\"*\"),\"\")","v":4}]
[null,"Jorge A",null,"receção","receção","receção","receção ","receção","receção","receção",null,null,{"$f":"IFERROR(COUNTIF(Quarta_feira[[#This Row],[07:00]:[15:00]],\"*\"),\"\")","v":7}]
[null,"João T",null,"receção","receção","receção","receção ","receção","receção","receção",null,null,{"$f":"IFERROR(COUNTIF(Quarta_feira[[#This Row],[07:00]:[15:00]],\"*\"),\"\")","v":7}]
[null,"Samuel C",{"$nulls":9},"Doente",{"$f":"IFERROR(COUNTIF(Quarta_feira[[#This Row],[07:00]:[15:00]],\"*\"),\"\")","v":0}]
[null,"Teresa A",{"$nulls":5},"caixa","caixa","caixa","caixa",null,{"$f":"IFERROR(COUNTIF(Quarta_feira[[#This Row],[07:00]:[15:00]],\"*\"),\"\")","v":4}]

{"sheet":"Quinta-feira","index":3,"n_rows":10,"n_cols":13,"rows_kept":10,"merged":[[1,1,2,1],[1,2,1,10],[1,11,1,12],[2,2,2,10],[2,11,2,12]]}
[null,{"$f":"CALENDÁRIO_DE_TURNOS_Título","v":"CALENDÁRIO DE TURNOS"}]
[null,"QUINTA-FEIRA","Para a Semana de: ",{"$nulls":8},{"$f":"DATA","v":"DATA"}]
[null,null,"Nome do Departamento: ",{"$nulls":8},{"$f":"DEPARTAMENTO","v":"DEPARTAMENTO"}]
[null,"Nome do Funcionário","07:00","08:00","09:00","10:00","11:00","12:00","13:00","14:00","15:00","Doente?","TOTAL"]
[null,"Margarida G.","gestora","gestora","gestora","gestora","gestora","gestora","gestora","gestora","gestora",null,{"$f":"IFERROR(COUNTIF(Quinta_feira[[#This Row],[07:00]:[15:00]],\"*\"),\"\")","v":9}]
[null,"Tomás M",null,"caixa","caixa","caixa","caixa",{"$nulls":5},{"$f":"IFERROR(COUNTIF(Quinta_feira[[#This Row],[07:00]:[15:00]],\"*\"),\"\")","v":4}]
[null,"Jorge A",null,"receção","receção","receção","receção ","receção","receção","receção",null,null,{"$f":"IFERROR(COUNTIF(Quinta_feira[[#This Row],[07:00]:[15:00]],\"*\"),\"\")","v":7}]
[null,"João T",null,"receção","receção","receção","receção ","receção","receção","receção",null,null,{"$f":"IFERROR(COUNTIF(Quinta_feira[[#This Row],[07:00]:[15:00]],\"*\"),\"\")","v":7}]
[null,"Samuel C",{"$nulls":9},"Doente",{"$f":"IFERROR(COUNTIF(Quinta_feira[[#This Row],[07:00]:[15:00]],\"*\"),\"\")","v":0}]
[null,"Teresa A",{"$nulls":5},"caixa","caixa","caixa","caixa",null,{"$f":"IFERROR(COUNTIF(Quinta_feira[[#This Row],[07:00]:[15:00]],\"*\"),\"\")","v":4}]

{"sheet":"Sexta-feira","index":4,"n_rows":10,"n_cols":13,"rows_kept":10,"merged":[[1,1,2,1],[1,2,1,10],[1,11,1,12],[2,2,2,10],[2,11,2,12]]}
[null,{"$f":"CALENDÁRIO_DE_TURNOS_Título","v":"CALENDÁRIO DE TURNOS"}]
[null,"SEXTA-FEIRA","Para a Semana de: ",{"$nulls":8},{"$f":"DATA","v":"DATA"}]
[null,null,"Nome do Departamento: ",{"$nulls":8},{"$f":"DEPARTAMENTO","v":"DEPARTAMENTO"}]
[null,"Nome do Funcionário","07:00","08:00","09:00","10:00","11:00","12:00","13:00","14:00","15:00","Doente?","TOTAL"]
[null,"Margarida G.","gestora","gestora","gestora","gestora","gestora","gestora","gestora","gestora","gestora",null,{"$f":"IFERROR(COUNTIF(Sexta_feira[[#This Row],[07:00]:[15:00]],\"*\"),\"\")","v":9}]
[null,"Tomás M",null,"caixa","caixa","caixa","caixa",{"$nulls":5},{"$f":"IFERROR(COUNTIF(Sexta_feira[[#This Row],[07:00]:[15:00]],\"*\"),\"\")","v":4}]
[null,"Jorge A",null,"receção","receção","receção","receção ","receção","receção","receção",null,null,{"$f":"IFERROR(COUNTIF(Sexta_feira[[#This Row],[07:00]:[15:00]],\"*\"),\"\")","v":7}]
[null,"João T",null,"receção","receção","receção","receção ","receção","receção","receção",null,null,{"$f":"IFERROR(COUNTIF(Sexta_feira[[#This Row],[07:00]:[15:00]],\"*\"),\"\")","v":7}]
[null,"Samuel C",{"$nulls":9},"Doente",{"$f":"IFERROR(COUNTIF(Sexta_feira[[#This Row],[07:00]:[15:00]],\"*\"),\"\")","v":0}]
[null,"Teresa A",{"$nulls":5},"caixa","caixa","caixa","caixa",null,{"$f":"IFERROR(COUNTIF(Sexta_feira[[#This Row],[07:00]:[15:00]],\"*\"),\"\")","v":4}]

{"sheet":"Sábado","index":5,"n_rows":10,"n_cols":13,"rows_kept":10,"merged":[[1,1,2,1],[1,2,1,10],[1,11,1,12],[2,2,2,10],[2,11,2,12]]}
[null,{"$f":"CALENDÁRIO_DE_TURNOS_Título","v":"CALENDÁRIO DE TURNOS"}]
[null,"SÁBADO","Para a Semana de: ",{"$nulls":8},{"$f":"DATA","v":"DATA"}]
[null,null,"Nome do Departamento: ",{"$nulls":8},{"$f":"DEPARTAMENTO","v":"DEPARTAMENTO"}]
[null,"Nome do Funcionário","07:00","08:00","09:00","10:00","11:00","12:00","13:00","14:00","15:00","Doente?","TOTAL"]
[null,"Margarida G.","gestora","gestora","gestora","gestora","gestora","gestora","gestora","gestora","gestora",null,{"$f":"IFERROR(COUNTIF(Sábado[[#This Row],[07:00]:[15:00]],\"*\"),\"\")","v":9}]
[null,"Tomás M",null,"caixa","caixa","caixa","caixa",{"$nulls":5},{"$f":"IFERROR(COUNTIF(Sábado[[#This Row],[07:00]:[15:00]],\"*\"),\"\")","v":4}]
[null,"Jorge A",null,"receção","receção","receção","receção ","receção","receção","receção",null,null,{"$f":"IFERROR(COUNTIF(Sábado[[#This Row],[07:00]:[15:00]],\"*\"),\"\")","v":7}]
[null,"João T",null,"receção","receção","receção","receção ","receção","receção","receção",null,null,{"$f":"IFERROR(COUNTIF(Sábado[[#This Row],[07:00]:[15:00]],\"*\"),\"\")","v":7}]
[null,"Samuel C",{"$nulls":9},"Doente",{"$f":"IFERROR(COUNTIF(Sábado[[#This Row],[07:00]:[15:00]],\"*\"),\"\")","v":0}]
[null,"Teresa A",{"$nulls":5},"caixa","caixa","caixa","caixa",null,{"$f":"IFERROR(COUNTIF(Sábado[[#This Row],[07:00]:[15:00]],\"*\"),\"\")","v":4}]

{"sheet":"Domingo","index":6,"n_rows":10,"n_cols":13,"rows_kept":10,"merged":[[1,1,2,1],[1,2,1,10],[1,11,1,12],[2,2,2,10],[2,11,2,12]]}
[null,{"$f":"CALENDÁRIO_DE_TURNOS_Título","v":"CALENDÁRIO DE TURNOS"}]
[null,"DOMINGO","Para a Semana de: ",{"$nulls":8},{"$f":"DATA","v":"DATA"}]
[null,null,"Nome do Departamento: ",{"$nulls":8},{"$f":"DEPARTAMENTO","v":"DEPARTAMENTO"}]
[null,"Nome do Funcionário","07:00","08:00","09:00","10:00","11:00","12:00","13:00","14:00","15:00","Doente?","TOTAL"]
[null,"Margarida G.","gestora","gestora","gestora","gestora","gestora","gestora","gestora","gestora","gestora",null,{"$f":"IFERROR(COUNTIF(Domingo[[#This Row],[07:00]:[15:00]],\"*\"),\"\")","v":9}]
[null,"Tomás M",null,"caixa","caixa","caixa","caixa",{"$nulls":5},{"$f":"IFERROR(COUNTIF(Domingo[[#This Row],[07:00]:[15:00]],\"*\"),\"\")","v":4}]
[null,"Jorge A",null,"receção","receção","receção","receção ","receção","receção","receção",null,null,{"$f":"IFERROR(COUNTIF(Domingo[[#This Row],[07:00]:[15:00]],\"*\"),\"\")","v":7}]
[null,"João T",null,"receção","receção","receção","receção ","receção","receção","receção",null,null,{"$f":"IFERROR(COUNTIF(Domingo[[#This Row],[07:00]:[15:00]],\"*\"),\"\")","v":7}]
[null,"Samuel C",{"$nulls":9},"Doente",{"$f":"IFERROR(COUNTIF(Domingo[[#This Row],[07:00]:[15:00]],\"*\"),\"\")","v":0}]
[null,"Teresa A",{"$nulls":5},"caixa","caixa","caixa","caixa",null,{"$f":"IFERROR(COUNTIF(Domingo[[#This Row],[07:00]:[15:00]],\"*\"),\"\")","v":4}]